bitfinex-derivatives/quotes_BTCF0:USTF0_20241221
["timestamp","ask_amount","ask_price","bid_price","bid_amount"]
[1734772252612,0.0557611,98349.0,98348.0,0.0086116]
[1734772252904,0.0557611,98349.0,98348.0,0.0594686]
[1734772253107,0.0557611,98349.0,98348.0,0.050857]
[1734772253805,6.11e-05,98349.0,98348.0,0.050857]
[1734772253999,0.0010611,98349.0,98348.0,0.050857]
[1734772254401,0.002,98349.0,98348.0,0.050857]
[1734772254699,0.001,98349.0,98348.0,0.051857]
[1734772255207,0.09086608,98349.0,98348.0,0.051857]
[1734772255896,4e-05,98351.0,98348.0,0.412657]
[1734772256104,0.11848347,98360.0,98355.0,0.050854]
[1734772256309,0.05114347,98360.0,98359.0,0.411651]
[1734772256609,0.050843,98375.0,98372.0,0.050844]
[1734772256808,0.050843,98375.0,98371.0,0.050845]
[1734772256994,0.3608,98387.0,98375.0,0.050843]
[1734772257199,0.3608,98387.0,98373.0,8e-05]
[1734772257502,0.3608,98387.0,98373.0,0.050844]
[1734772257704,0.05084,98382.0,98379.0,0.050841]
[1734772258615,0.050841,98381.0,98379.0,0.050841]
[1734772258999,0.050841,98379.0,98373.0,0.001]
[1734772259416,4e-05,98374.0,98373.0,0.001]
[1734772259813,4e-05,98374.0,98372.0,0.050845]
[1734772260307,4e-05,98373.0,98372.0,0.050845]
[1734772261114,4e-05,98373.0,98372.0,0.051845]
[1734772261318,4e-05,98373.0,98372.0,0.001]
[1734772261524,0.00404,98373.0,98372.0,0.001]
[1734772261817,0.063884,98373.0,98372.0,0.001]
[1734772262415,0.01304,98373.0,98372.0,0.001]
[1734772269812,0.01304,98373.0,98372.0,0.00214293]
[1734772274523,0.3608,98387.0,98373.0,0.050844]
[1734772274720,0.3608,98387.0,98386.0,0.050838]
[1734772275023,0.050838,98386.0,98382.0,0.050839]
[1734772275416,4e-05,98383.0,98382.0,0.050839]
[1734772275818,4e-05,98383.0,98382.0,0.05198193]
[1734772276018,0.050879,98383.0,98382.0,0.05198193]
[1734772277228,0.054879,98383.0,98382.0,0.05198193]
[1734772277728,0.062879,98383.0,98382.0,0.05298193]
[1734772278028,0.062879,98383.0,98382.0,0.06299472]
[1734772278528,0.01204,98383.0,98382.0,0.06438412]
[1734772279320,0.01204,98383.0,98382.0,0.01354512]
[1734772279625,0.01204,98383.0,98370.0,0.0651234]
[1734772279626,0.37284,98383.0,98370.0,0.0651234]
[1734772279826,0.411645,98371.0,98370.0,0.0651234]
[1734772280027,0.050847,98369.0,98363.0,0.24363456]
[1734772280325,4e-05,98364.0,98363.0,0.24363456]
[1734772280829,4e-05,98364.0,98362.0,0.0609028]
[1734772281142,4e-05,98363.0,98362.0,0.0609028]
[1734772281518,4e-05,98363.0,98362.0,0.0100528]
[1734772281720,4e-05,98363.0,98356.0,0.050853]
[1734772281926,0.05089,98363.0,98356.0,0.050853]
[1734772282225,4e-05,98360.0,98356.0,0.050853]
[1734772283419,4e-05,98360.0,98359.0,0.37368164]
[1734772284220,4e-05,98360.0,98359.0,0.37568164]
[1734772285121,0.3608,98371.0,98359.0,0.37568164]
[1734772285122,0.3608,98371.0,98369.0,0.050846]
[1734772285516,0.18171248,98384.0,98379.0,0.050841]
[1734772285819,0.23255148,98384.0,98383.0,8e-05]
[1734772287127,0.23255148,98384.0,98383.0,0.01021915]
[1734772287432,0.3608,98391.0,98383.0,0.01021915]
[1734772287433,0.15139081,98390.0,98389.0,0.050836]
[1734772287822,0.15139081,98390.0,98389.0,0.050916]
[1734772288626,0.3608,98391.0,98389.0,0.050916]
[1734772289125,0.3608,98391.0,98390.0,8e-05]
[1734772290226,0.3608,98391.0,98390.0,0.0101255]
[1734772290424,0.3698,98391.0,98390.0,0.0111255]
[1734772291430,0.3738,98391.0,98390.0,0.0111255]
[1734772292126,0.3698,98391.0,98390.0,0.0111255]
[1734772292330,0.3738,98391.0,98390.0,0.0111255]
[1734772293629,0.18171248,98411.0,98400.0,0.05083]
[1734772293830,0.24228331,98438.0,98428.0,0.050816]
[1734772294032,0.24228331,98438.0,98428.0,0.411616]
[1734772294240,0.24228331,98438.0,98428.0,0.411696]
[1734772295328,0.24228331,98438.0,98428.0,0.36088]
[1734772295521,0.01571994,98431.0,98428.0,0.55903898]
[1734772295730,0.003,98429.0,98428.0,0.411616]
[1734772295930,0.04656648,98429.0,98428.0,0.411616]
[1734772296128,0.04856648,98429.0,98428.0,0.42303352]
[1734772296736,0.04656648,98429.0,98428.0,0.42203352]
[1734772296929,0.04356648,98429.0,98428.0,0.42203352]
[1734772297132,0.0369,98441.0,98440.0,0.05081]
[1734772297432,0.05118041,98441.0,98440.0,0.05081]
[1734772297625,0.0349,98447.0,98440.0,0.05081]
[1734772297626,0.0386,98455.0,98454.0,0.050802]
[1734772297825,0.0386,98455.0,98454.0,0.411602]
[1734772298031,0.13349081,98455.0,98454.0,0.411682]
[1734772298227,0.0386,98455.0,98454.0,0.411682]
[1734772299037,0.0456,98455.0,98454.0,0.412682]
[1734772300229,0.007,98455.0,98454.0,0.412682]
[1734772300438,0.0357,98468.0,98467.0,0.050796]
[1734772300628,0.13059081,98468.0,98467.0,0.050796]
[1734772300828,0.13059081,98468.0,98467.0,0.050876]
[1734772301740,0.13659081,98468.0,98467.0,0.051876]
[1734772302842,0.0347,98480.0,98479.0,0.05079]
[1734772303142,0.0347,98480.0,98479.0,0.0280156]
[1734772303439,0.12959081,98480.0,98479.0,0.0280156]
[1734772304343,0.13159081,98480.0,98479.0,0.0290156]
[1734772305039,0.13793911,98480.0,98479.0,0.0290156]
[1734772305736,0.0723,98496.0,98479.0,0.00108]
[1734772305944,0.0723,98496.0,98495.0,0.050781]
[1734772306235,0.1106,98496.0,98495.0,0.050861]
[1734772307029,0.13172046,98496.0,98495.0,0.050861]
[1734772307223,0.13172046,98496.0,98495.0,8e-05]
[1734772307430,0.13172046,98496.0,98479.0,0.01098565]
[1734772307431,0.43171347,98496.0,98455.0,0.01524]
[1734772307627,0.050793,98472.0,98470.0,0.09907949]
[1734772307827,0.07194647,98472.0,98470.0,0.03967949]
[1734772308032,0.050797,98465.0,98455.0,0.050802]
[1734772308334,4e-05,98456.0,98455.0,0.14988149]
[1734772308638,0.02115347,98456.0,98455.0,0.050802]
[1734772308830,0.02115347,98456.0,98455.0,0.411602]
[1734772309032,0.02115347,98456.0,98455.0,0.3608]
[1734772309236,0.02115347,98456.0,98447.0,0.3608]
[1734772309237,0.050805,98449.0,98447.0,0.3608]
[1734772309439,0.02111347,98448.0,98447.0,0.3608]
[1734772309636,0.03445619,98448.0,98447.0,0.3608]
[1734772309939,0.03445619,98448.0,98447.0,0.411606]
[1734772310536,0.03463924,98448.0,98447.0,0.412606]
[1734772310928,0.03463924,98448.0,98447.0,0.414606]
[1734772312932,0.03495593,98448.0,98447.0,0.414606]
[1734772313132,0.03495593,98448.0,98447.0,0.412606]
[1734772313339,0.08576193,98448.0,98447.0,0.002]
[1734772313529,0.08576193,98448.0,98447.0,0.003]
[1734772313729,0.13505364,98448.0,98447.0,0.003]
[1734772314542,0.0921129,98448.0,98447.0,0.003]
[1734772315230,0.13505364,98448.0,98447.0,0.003]
[1734772315435,0.13505364,98448.0,98447.0,0.002]
[1734772315737,0.0921129,98448.0,98447.0,0.001]
[1734772316138,0.0921129,98448.0,98439.0,0.10946097]
[1734772316336,0.0412669,98447.0,98445.0,0.050807]
[1734772316542,0.0412669,98446.0,98445.0,0.050807]
[1734772318744,0.0412669,98446.0,98439.0,0.01038148]
[1734772318745,0.050808,98443.0,98439.0,0.01038148]
[1734772318956,0.050811,98439.0,98434.0,0.33036234]
[1734772319141,0.03435755,98438.0,98435.0,0.050812]
[1734772319342,0.02114311,98437.0,98435.0,0.050812]
[1734772319652,0.04070853,98436.0,98435.0,0.050812]
[1734772319838,0.04070853,98436.0,98434.0,0.01020464]
[1734772320043,0.07890853,98435.0,98434.0,0.002]
[1734772320541,0.07890853,98435.0,98433.0,0.37099033]
[1734772320850,0.04074853,98434.0,98433.0,0.01019033]
[1734772321042,0.04074853,98434.0,98432.0,0.412973]
[1734772321241,0.03435755,98433.0,98432.0,0.411613]
[1734772321442,0.04074853,98433.0,98432.0,0.411613]
[1734772322553,0.04074853,98433.0,98432.0,0.414613]
[1734772323241,0.02957802,98433.0,98432.0,0.417613]
[1734772323546,0.3608,98450.0,98449.0,0.050805]
[1734772323940,0.3608,98460.0,98454.0,0.050802]
[1734772324251,0.03872342,98455.0,98454.0,8e-05]
[1734772324447,0.11998233,98460.0,98459.0,0.0508]
[1734772324652,0.15870797,98460.0,98459.0,0.0508]
[1734772324946,0.11998233,98460.0,98459.0,0.05088]
[1734772325745,0.19538233,98479.0,98478.0,0.05079]
[1734772325949,0.19500438,98479.0,98478.0,0.41159]
[1734772326157,0.19500438,98479.0,98478.0,0.41167]
[1734772326655,0.11998233,98479.0,98478.0,0.41167]
[1734772326837,0.11998233,98486.0,98485.0,0.050786]
[1734772327243,0.11998233,98486.0,98485.0,0.050866]
[1734772328842,0.11998233,98494.0,98493.0,0.050782]
[1734772329249,0.11998233,98494.0,98493.0,0.050862]
[1734772329637,0.15880438,98494.0,98493.0,0.050862]
[1734772329843,0.11998233,98494.0,98493.0,0.050862]
[1734772330038,0.001,98494.0,98493.0,0.051862]
[1734772331553,0.00734753,98494.0,98493.0,0.051862]
[1734772333448,0.02688924,98494.0,98493.0,0.051862]
[1734772333848,0.02688924,98494.0,98493.0,0.02901015]
[1734772335345,0.03940095,98494.0,98493.0,0.02901015]
[1734772335553,0.03882205,98513.0,98502.0,0.050778]
[1734772335754,0.0739,98521.0,98502.0,0.411578]
[1734772336052,0.11998233,98508.0,98507.0,0.050775]
[1734772337151,0.11998233,98508.0,98507.0,0.050855]
[1734772337663,0.050769,98520.0,98511.0,0.050773]
[1734772337862,0.050769,98519.0,98511.0,0.050773]
[1734772338259,0.3608,98514.0,98503.0,0.050777]
[1734772338458,0.3608,98514.0,98502.0,0.001]
[1734772338668,0.050771,98516.0,98507.0,0.051775]
[1734772338853,0.0356342,98515.0,98507.0,0.051775]
[1734772339054,0.050771,98515.0,98508.0,0.050774]
[1734772339256,0.050771,98515.0,98511.0,0.001]
[1734772339455,0.050771,98515.0,98508.0,0.050774]
[1734772339966,4e-05,98509.0,98508.0,0.050774]
[1734772340155,0.0356742,98509.0,98508.0,0.050774]
[1734772340356,4e-05,98509.0,98508.0,0.050774]
[1734772341467,4e-05,98509.0,98508.0,0.051774]
[1734772341953,0.00104,98509.0,98508.0,0.052774]
[1734772342154,0.00104,98509.0,98508.0,0.051774]
[1734772343751,0.00738646,98509.0,98508.0,0.051774]
[1734772345559,0.02763705,98509.0,98508.0,0.051774]
[1734772346267,0.02806007,98509.0,98508.0,0.051774]
[1734772347870,0.02171373,98509.0,98508.0,0.051774]
[1734772348260,0.00738594,98509.0,98508.0,0.051774]
[1734772348867,0.04096975,98509.0,98508.0,0.051774]
[1734772349069,0.03462381,98509.0,98508.0,0.051774]
[1734772349366,0.00104,98509.0,98508.0,0.051774]
[1734772349763,0.04100683,98509.0,98508.0,0.051774]
[1734772352073,0.04110471,98509.0,98508.0,0.051774]
[1734772352972,0.05681619,98509.0,98508.0,0.051774]
[1734772353276,0.04110471,98509.0,98508.0,0.051774]
[1734772354173,0.05681619,98509.0,98508.0,0.051774]
[1734772354559,0.04110471,98509.0,98508.0,0.051774]
[1734772354760,0.04110471,98509.0,98508.0,0.050774]
[1734772354964,0.04106471,98509.0,98508.0,0.050774]
[1734772355171,0.0739,98521.0,98510.0,0.050774]
[1734772355368,0.038,98521.0,98520.0,0.411568]
[1734772355576,0.038,98521.0,98520.0,0.411648]
[1734772356563,0.0372,98531.0,98528.0,0.050764]
[1734772356770,0.0372,98531.0,98529.0,0.050764]
[1734772356976,0.0372,98531.0,98530.0,8e-05]
[1734772358477,0.0372,98531.0,98530.0,0.00108]
[1734772359270,0.12101019,98531.0,98530.0,0.00108]
[1734772359469,0.12101019,98531.0,98530.0,0.36188]
[1734772361080,0.12101019,98544.0,98530.0,0.36188]
[1734772361285,0.12101019,98544.0,98543.0,0.050757]
[1734772361471,0.12101019,98544.0,98543.0,0.050837]
[1734772362977,0.0381,98546.0,98545.0,0.050756]
[1734772363177,0.04444439,98546.0,98545.0,0.050756]
[1734772363374,0.04444439,98546.0,98545.0,0.050836]
[1734772364265,0.0444444,98546.0,98545.0,0.050836]
[1734772364869,0.0444444,98546.0,98545.0,0.051836]
[1734772365069,0.06465999,98546.0,98545.0,0.051836]
[1734772367084,0.07740301,98546.0,98545.0,0.051836]
[1734772368374,0.050763,98531.0,98530.0,0.18193857]
[1734772368580,0.45086601,98531.0,98529.0,0.18057857]
[1734772368777,0.07510301,98530.0,98529.0,0.18057857]
[1734772369076,0.11280301,98530.0,98529.0,0.18057857]
[1734772369470,0.11284301,98530.0,98529.0,0.18057857]
[1734772369674,0.11369293,98530.0,98529.0,0.18057857]
[1734772369884,0.11369293,98530.0,98520.0,0.09907949]
[1734772369885,0.050764,98529.0,98520.0,0.09907949]
[1734772370183,4e-05,98521.0,98510.0,0.45987949]
[1734772370483,0.050775,98507.0,98506.0,0.19346096]
[1734772370676,0.09092793,98507.0,98506.0,0.18057857]
[1734772370877,0.09096793,98507.0,98506.0,0.18057857]
[1734772371191,0.09096793,98507.0,98502.0,0.413017]
[1734772371479,0.04015293,98506.0,98502.0,0.413017]
[1734772371678,0.07849293,98506.0,98505.0,0.35357418]
[1734772372480,0.07859265,98506.0,98505.0,0.35357418]
[1734772372984,0.08059265,98506.0,98505.0,0.31823118]
[1734772373674,0.08059265,98506.0,98505.0,0.31923118]
[1734772374483,0.03934,98506.0,98505.0,0.31923118]
[1734772374681,0.0793023,98506.0,98505.0,0.31923118]
[1734772374880,0.0783023,98506.0,98505.0,0.31923118]
[1734772375073,0.0793023,98506.0,98505.0,0.31923118]
[1734772375475,0.07928071,98506.0,98505.0,0.31923118]
[1734772378284,0.04098071,98506.0,98505.0,0.31923118]
[1734772381884,0.04118011,98506.0,98505.0,0.31923118]
[1734772382077,0.04118011,98506.0,98505.0,0.001]
[1734772383687,0.40198011,98506.0,98505.0,0.001]
[1734772383882,0.41771791,98506.0,98505.0,0.001]
[1734772384083,0.40198011,98506.0,98505.0,0.001]
[1734772386197,0.40186116,98506.0,98505.0,0.001]
[1734772389199,0.40190646,98506.0,98505.0,0.001]
[1734772389591,0.40190636,98506.0,98505.0,0.001]
[1734772391999,0.41770677,98506.0,98505.0,0.001]
[1734772392303,0.050784,98490.0,98484.0,0.050787]
[1734772392599,0.04017846,98489.0,98488.0,0.35741287]
[1734772393399,0.04017846,98489.0,98488.0,0.36141287]
[1734772393588,0.03383046,98489.0,98488.0,0.36141287]
[1734772394100,0.0401785,98489.0,98488.0,0.36141287]
[1734772394291,0.0401785,98489.0,98488.0,0.36641287]
[1734772394798,0.03427252,98489.0,98488.0,0.36741287]
[1734772394990,0.04062053,98489.0,98488.0,0.36741287]
[1734772398204,0.0406069,98489.0,98488.0,0.36741287]
[1734772400299,0.0406069,98489.0,98488.0,0.54799144]
[1734772400602,0.04065646,98489.0,98488.0,0.54799144]
[1734772401102,0.04065646,98489.0,98488.0,0.20687144]
[1734772401401,0.04065646,98489.0,98488.0,0.02629287]
[1734772402503,0.04065646,98489.0,98488.0,0.01]
[1734772402696,0.40145646,98489.0,98488.0,0.01]
[1734772402896,0.47975646,98489.0,98488.0,0.01]
[1734772403093,0.47975646,98489.0,98484.0,0.24363456]
[1734772403293,0.411586,98485.0,98484.0,0.24363456]
[1734772403596,0.45306015,98485.0,98484.0,0.24363456]
[1734772403800,0.45306015,98485.0,98484.0,0.21188614]
[1734772404301,0.60391623,98485.0,98484.0,0.012]
[1734772404898,0.60491623,98485.0,98476.0,0.00012389]
[1734772405097,0.411591,98477.0,98476.0,0.00012389]
[1734772405309,0.45306515,98477.0,98476.0,0.00012389]
[1734772406504,0.02123467,98477.0,98476.0,0.00012389]
[1734772406710,0.04083103,98477.0,98476.0,0.00012389]
[1734772406909,0.04718059,98477.0,98476.0,0.00012389]
[1734772407113,0.0408309,98477.0,98476.0,0.00112389]
[1734772407303,0.0408309,98477.0,98476.0,0.03912389]
[1734772407604,0.0438309,98477.0,98476.0,0.03812389]
[1734772407806,0.0438309,98477.0,98476.0,0.39892389]
[1734772407999,0.0438309,98477.0,98476.0,0.43632389]
[1734772408601,0.17963204,98486.0,98485.0,0.050786]
[1734772409004,0.09070719,98490.0,98488.0,0.050785]
[1734772409505,0.09070719,98490.0,98489.0,8e-05]
[1734772409893,0.09070719,98490.0,98489.0,0.01532]
[1734772410095,0.13669372,98495.0,98489.0,0.01532]
[1734772410294,0.17963204,98515.0,98505.0,0.050776]
[1734772410500,0.17963204,98515.0,98514.0,0.050772]
[1734772410801,0.17963204,98515.0,98514.0,0.050852]
[1734772411708,0.18363204,98515.0,98514.0,0.050852]
[1734772411902,0.18463204,98515.0,98514.0,0.050852]
[1734772412203,0.005,98515.0,98514.0,0.050852]
[1734772414014,0.005,98515.0,98514.0,0.0666728]
[1734772414309,0.0388,98534.0,98531.0,0.050762]
[1734772414513,0.0388,98534.0,98532.0,0.050762]
[1734772414696,0.0388,98534.0,98533.0,8e-05]
[1734772415308,0.0428,98534.0,98533.0,8e-05]
[1734772415507,0.0478,98534.0,98533.0,8e-05]
[1734772416899,0.04914537,98534.0,98533.0,0.00108]
[1734772418111,0.04914537,98534.0,98533.0,0.01738848]
[1734772418613,0.06984492,98534.0,98533.0,0.01738848]
[1734772420208,0.06983263,98534.0,98533.0,0.01738848]
[1734772420717,0.07477987,98534.0,98533.0,0.01738848]
[1734772421618,0.05509995,98534.0,98533.0,0.01738848]
[1734772425016,0.0428,98534.0,98533.0,0.01738848]
[1734772425516,0.004,98534.0,98533.0,0.01738848]
[1734772426020,0.01227892,98540.0,98539.0,0.050759]
[1734772426317,0.01227892,98540.0,98539.0,0.050839]
[1734772427319,0.01527892,98540.0,98539.0,0.050839]
[1734772427519,0.01527892,98540.0,98539.0,0.051839]
[1734772429515,0.01528574,98540.0,98539.0,0.051839]
[1734772431817,0.01527652,98540.0,98539.0,0.051839]
[1734772432523,0.01527652,98540.0,98521.0,0.00136]
[1734772432725,0.3608,98537.0,98527.0,0.050765]
[1734772432923,0.03191895,98536.0,98527.0,0.050765]
[1734772433119,0.03191895,98535.0,98527.0,0.050765]
[1734772433320,0.050764,98530.0,98527.0,0.050765]
[1734772433527,0.03191895,98529.0,98527.0,0.050765]
[1734772433728,0.03191895,98528.0,98527.0,0.050765]
[1734772433930,0.07171895,98528.0,98527.0,0.06548227]
[1734772434230,0.07171895,98528.0,98527.0,0.06648227]
[1734772435027,0.07312343,98528.0,98527.0,0.06648227]
[1734772435528,0.07946922,98528.0,98527.0,0.06548227]
[1734772435725,0.11816922,98528.0,98527.0,0.06548227]
[1734772435926,0.11916922,98528.0,98527.0,0.06548227]
[1734772436128,0.12116922,98528.0,98527.0,0.06548227]
[1734772437031,0.12116922,98528.0,98527.0,0.01471727]
[1734772437230,0.12116922,98528.0,98521.0,0.050768]
[1734772437533,0.050766,98525.0,98521.0,0.050768]
[1734772438026,0.0815,98528.0,98521.0,0.050768]
[1734772438027,0.03974954,98524.0,98521.0,0.050768]
[1734772438228,0.03974954,98523.0,98521.0,0.050768]
[1734772438429,0.02690195,98522.0,98521.0,0.050768]
[1734772438626,0.03974954,98522.0,98521.0,0.050768]
[1734772439526,0.05549224,98522.0,98521.0,0.050768]
[1734772439726,0.05649224,98522.0,98521.0,0.050768]
[1734772439928,0.05649224,98522.0,98521.0,0.051768]
[1734772440324,0.04074954,98522.0,98521.0,0.001]
[1734772440527,0.08044954,98522.0,98521.0,0.001]
[1734772440727,0.08056209,98522.0,98521.0,0.001]
[1734772441630,0.04086209,98522.0,98521.0,0.001]
[1734772442025,0.05664115,98522.0,98521.0,0.001]
[1734772442229,0.05664153,98522.0,98521.0,0.001]
[1734772442431,0.04086209,98522.0,98521.0,0.001]
[1734772445735,0.04156637,98522.0,98521.0,0.001]
[1734772446034,0.04156561,98522.0,98521.0,0.001]
[1734772446249,0.04156555,98522.0,98521.0,0.001]
[1734772448655,0.04157321,98522.0,98521.0,0.001]
[1734772452645,0.05735506,98522.0,98521.0,0.001]
[1734772453050,0.04157321,98522.0,98521.0,0.001]
[1734772454554,0.001,98522.0,98521.0,0.001]
[1734772454958,0.04154072,98522.0,98521.0,0.001]
[1734772455256,0.04154894,98522.0,98521.0,0.001]
[1734772455662,0.04154894,98522.0,98520.0,0.0146551]
[1734772455863,0.09131694,98521.0,98519.0,0.00152242]
[1734772456067,0.03420337,98520.0,98519.0,0.00152242]
[1734772456268,0.04054894,98520.0,98519.0,0.00152242]
[1734772457661,0.04041139,98520.0,98519.0,0.00152242]
[1734772458059,0.04041139,98520.0,98519.0,0.00252242]
[1734772458268,0.04041139,98520.0,98519.0,0.01665963]
[1734772458562,0.050771,98515.0,98514.0,0.18240537]
[1734772458762,0.050771,98515.0,98508.0,0.01401378]
[1734772458763,0.050773,98512.0,98508.0,0.01401378]
[1734772459061,0.45202439,98512.0,98508.0,0.01401378]
[1734772459764,0.45202439,98512.0,98510.0,0.18239269]
[1734772460155,0.45202439,98512.0,98511.0,0.34308]
[1734772460354,0.45206994,98512.0,98511.0,0.34308]
[1734772461161,0.45206994,98512.0,98511.0,0.004]
[1734772463358,0.050778,98502.0,98501.0,0.18239269]
[1734772463554,0.42468393,98502.0,98501.0,0.18239269]
[1734772463758,0.4310708,98502.0,98501.0,0.18239269]
[1734772463960,0.4520391,98502.0,98501.0,0.18239269]
[1734772464566,0.4520391,98502.0,98501.0,0.18839269]
[1734772464761,0.4520391,98502.0,98501.0,0.01]
[1734772465371,0.46527577,98502.0,98501.0,0.01]
[1734772466166,0.45209597,98502.0,98501.0,0.01]
[1734772466368,0.46472447,98502.0,98501.0,0.01]
[1734772467078,0.45079998,98502.0,98501.0,0.01]
[1734772468161,0.4242465,98502.0,98501.0,0.01]
[1734772468470,0.45131857,98502.0,98501.0,0.01]
[1734772468669,0.45131614,98502.0,98501.0,0.01]
[1734772474674,0.09051614,98502.0,98501.0,0.01]
[1734772474865,0.46706705,98502.0,98501.0,0.01]
[1734772475065,0.46631104,98502.0,98501.0,0.01]
[1734772475272,0.45056002,98502.0,98501.0,0.01]
[1734772475681,0.411618,98502.0,98501.0,0.01]
[1734772477380,0.45028354,98502.0,98501.0,0.01]
[1734772477985,0.46603706,98502.0,98501.0,0.01]
[1734772478371,0.45028354,98502.0,98501.0,0.01]
[1734772478679,0.050791,98477.0,98476.0,0.18251658]
[1734772478881,0.08310843,98477.0,98476.0,0.18251658]
[1734772479081,0.08314843,98477.0,98476.0,0.18251658]
[1734772479583,0.08314843,98477.0,98476.0,0.00012389]
[1734772479770,0.08614843,98477.0,98476.0,0.00012389]
[1734772479971,0.08673748,98477.0,98476.0,0.01376401]
[1734772480281,0.08673748,98477.0,98476.0,0.00012389]
[1734772482371,0.08619112,98477.0,98476.0,0.00012389]
[1734772484968,0.08819112,98477.0,98476.0,0.00012389]
[1734772485165,0.09153983,98477.0,98476.0,0.00012389]
[1734772485365,0.09253983,98477.0,98476.0,0.00912389]
[1734772485770,0.08319112,98477.0,98476.0,0.00912389]
[1734772485974,0.09053984,98477.0,98476.0,0.01512389]
[1734772487181,0.08419112,98477.0,98476.0,0.01512389]
[1734772488082,0.09053984,98477.0,98476.0,0.01512389]
[1734772488289,0.08419112,98477.0,98476.0,0.01512389]
[1734772489176,0.09053984,98477.0,98476.0,0.01512389]
[1734772491282,0.09028011,98477.0,98476.0,0.01512389]
[1734772491586,0.09029396,98477.0,98476.0,0.01512389]
[1734772491775,0.1041586,98477.0,98476.0,0.01512389]
[1734772491973,0.4649586,98477.0,98476.0,0.01512389]
[1734772492175,0.050793,98473.0,98472.0,0.2431006]
[1734772492382,0.08825596,98473.0,98472.0,0.2431006]
[1734772493090,0.050799,98461.0,98460.0,0.11302446]
[1734772493292,0.08826196,98461.0,98460.0,0.01401035]
[1734772493489,0.08826196,98461.0,98459.0,0.18245699]
[1734772493683,0.03746296,98460.0,98459.0,0.18245699]
[1734772494186,0.03746296,98460.0,98459.0,0.1966408]
[1734772494187,0.03709088,98460.0,98459.0,0.1966408]
[1734772494384,0.03713088,98460.0,98459.0,0.1966408]
[1734772494885,0.03713088,98460.0,98458.0,0.0508]
[1734772495082,0.03709088,98459.0,98458.0,0.0508]
[1734772495395,0.03078086,98459.0,98458.0,0.0508]
[1734772495976,0.03078086,98459.0,98458.0,0.0538]
[1734772496182,0.03078086,98459.0,98458.0,0.0680263]
[1734772496393,0.03178086,98459.0,98458.0,0.0730263]
[1734772496981,0.03018949,98459.0,98458.0,0.0730263]
[1734772497577,0.01225134,98459.0,98458.0,0.0730263]
[1734772497884,0.01225134,98459.0,98458.0,0.25548329]
[1734772498797,0.01225134,98459.0,98458.0,0.0730263]
[1734772499791,0.12126442,98476.0,98458.0,0.0730263]
[1734772499997,0.02917622,98471.0,98470.0,0.050794]
[1734772500180,0.01122162,98471.0,98470.0,0.050794]
[1734772500386,0.11213375,98478.0,98470.0,0.050794]
[1734772500591,0.11213375,98478.0,98477.0,0.411591]
[1734772501886,0.15158053,98485.0,98484.0,0.050787]
[1734772502199,0.3608,98498.0,98496.0,0.050781]
[1734772502386,0.15158053,98503.0,98502.0,0.050778]
[1734772502897,0.15158053,98503.0,98502.0,0.050858]
[1734772503999,0.3608,98516.0,98502.0,8e-05]
[1734772504193,0.3608,98516.0,98505.0,0.3608]
[1734772504393,0.3608,98516.0,98515.0,8e-05]
[1734772505100,0.3608,98516.0,98515.0,0.050851]
[1734772505402,0.3638,98516.0,98515.0,0.050851]
[1734772506194,0.003,98516.0,98515.0,0.050851]
[1734772506984,0.003,98516.0,98515.0,0.0726545]
[1734772508297,0.0389,98530.0,98520.0,0.050768]
[1734772508798,0.0389,98530.0,98520.0,0.050848]
[1734772509486,0.00104,98521.0,98520.0,0.050848]
[1734772509886,0.0389,98530.0,98520.0,8e-05]
[1734772510088,0.0389,98530.0,98529.0,0.050764]
[1734772510285,0.0389,98530.0,98529.0,0.050844]
[1734772511097,0.0409,98530.0,98529.0,0.050844]
[1734772511494,0.0409,98530.0,98529.0,8e-05]
[1734772511888,0.0479,98530.0,98529.0,0.00108]
[1734772522602,0.05851525,98530.0,98529.0,0.00108]
[1734772526210,0.07549965,98530.0,98529.0,0.00108]
[1734772527905,0.05864695,98530.0,98529.0,0.00108]
[1734772528109,0.07584207,98530.0,98529.0,0.00108]
[1734772531010,0.07578739,98530.0,98529.0,0.00108]
[1734772531312,0.07578885,98530.0,98529.0,0.00108]
[1734772533813,0.03634988,98530.0,98529.0,0.00108]
[1734772534810,0.01951918,98530.0,98529.0,0.00108]
[1734772535419,0.01951918,98530.0,98529.0,0.02321935]
[1734772535599,0.01951918,98530.0,98529.0,0.00108]
[1734772535806,0.01951918,98530.0,98529.0,0.3056232]
[1734772537016,0.01951918,98530.0,98529.0,0.00108]
[1734772537316,0.01938672,98530.0,98529.0,0.00108]
[1734772539916,0.01938672,98530.0,98529.0,0.36188]
[1734772540214,0.01937976,98530.0,98529.0,0.36188]
[1734772542217,0.01938009,98530.0,98529.0,0.36188]
[1734772542618,0.01938013,98530.0,98529.0,0.36188]
[1734772548607,0.01936128,98530.0,98529.0,0.36188]
[1734772550114,0.01936128,98530.0,98529.0,0.00108]
[1734772553017,0.01936128,98530.0,98529.0,0.051844]
[1734772553514,0.01936128,98530.0,98529.0,0.00108]
[1734772553719,0.07012428,98530.0,98529.0,0.00108]
[1734772554021,0.07012428,98530.0,98529.0,0.18344754]
[1734772554418,0.07005081,98530.0,98529.0,0.18344754]
[1734772555107,0.07005081,98530.0,98529.0,0.00108]
[1734772555716,0.43085081,98530.0,98529.0,0.00108]
[1734772555913,0.050765,98526.0,98525.0,0.18236754]
[1734772556108,0.06105281,98526.0,98525.0,0.18236754]
[1734772556315,0.06109281,98526.0,98525.0,0.18236754]
[1734772556711,0.050768,98521.0,98520.0,0.06491465]
[1734772556915,0.42185581,98521.0,98520.0,0.06491465]
[1734772557115,0.42189581,98521.0,98520.0,0.06491465]
[1734772557918,0.42289581,98521.0,98520.0,0.06491465]
[1734772558221,0.42589581,98521.0,98520.0,0.06491465]
[1734772558613,0.37512781,98521.0,98517.0,0.02162457]
[1734772558813,0.01028781,98520.0,98512.0,0.050772]
[1734772559008,0.05077,98517.0,98512.0,0.050772]
[1734772559212,4e-05,98513.0,98512.0,0.050772]
[1734772559520,0.01032781,98513.0,98512.0,0.050772]
[1734772560313,0.01034154,98513.0,98512.0,0.050772]
[1734772560717,0.01034154,98513.0,98512.0,0.051772]
[1734772561314,0.01034154,98513.0,98512.0,0.02285868]
[1734772561527,0.01034154,98513.0,98512.0,0.001]